fUST/lending_fUST_20250623
["ID","MTS","AMOUNT","RATE_DAILY","PERIOD"]
[367048076,1750636246336,-460.0,0.00024584,2]
[367048078,1750636246345,-460.0,0.00024584,2]
[367048080,1750636246354,-460.0,0.00024584,2]
[367048082,1750636246363,-460.0,0.00024584,2]
[367048084,1750636246372,-460.0,0.00024584,2]
[367048086,1750636246381,-460.0,0.00024584,2]
[367048088,1750636246390,-460.0,0.00024584,2]
[367048090,1750636246400,-460.0,0.00024584,2]
[367048093,1750636246409,-830.46,0.00024584,2]
[367048095,1750636246418,-854.56,0.00024584,2]
[367048097,1750636246427,-460.0,0.00024584,2]
[367048099,1750636246437,-460.0,0.00024584,2]
[367048101,1750636246447,-460.0,0.00024584,2]
[367048103,1750636246456,-460.0,0.00024584,2]
[367048105,1750636246466,-460.0,0.00024584,2]
[367048107,1750636246475,-460.0,0.00024584,2]
[367048109,1750636246484,-460.0,0.00024584,2]
[367048111,1750636246494,-460.0,0.00024584,2]
[367048113,1750636246503,-460.0,0.00024584,2]
[367048115,1750636246512,-401.19447688,0.00024584,2]
[367048117,1750636246522,-460.0,0.00024584,2]
[367048119,1750636246531,-460.0,0.00024584,2]
[367048121,1750636246541,-460.0,0.00024584,2]
[367048123,1750636246550,-460.0,0.00024584,2]
[367048125,1750636246559,-460.0,0.00024584,2]
[367048127,1750636246569,-460.0,0.00024596,2]
[367048129,1750636246578,-460.0,0.00024596,2]
[367048131,1750636246587,-460.0,0.00024596,2]
[367048133,1750636246597,-460.0,0.00024596,2]
[367048135,1750636246606,-2032.93,0.00024596,2]
[367048137,1750636246615,-519.66,0.00024596,2]
[367048139,1750636246624,-652.73,0.00024596,2]
[367048141,1750636246634,-460.0,0.00024596,2]
[367048143,1750636246643,-460.0,0.00024596,2]
[367048145,1750636246653,-572.63,0.00024596,2]
[367048147,1750636246662,-754.77,0.00024596,2]
[367048149,1750636246672,-460.0,0.00024596,2]
[367048151,1750636246681,-460.0,0.00024596,2]
[367048153,1750636246691,-460.0,0.00024596,2]
[367048155,1750636246700,-460.0,0.00024596,2]
[367048157,1750636246710,-460.0,0.00024596,2]
[367048159,1750636246720,-460.0,0.00024596,2]
[367048161,1750636246730,-460.0,0.00024596,2]
[367048163,1750636246739,-460.0,0.00024596,2]
[367048165,1750636246749,-460.0,0.00024596,2]
[367048167,1750636246758,-460.0,0.00024596,2]
[367048169,1750636246768,-460.0,0.00024596,2]
[367048171,1750636246777,-460.0,0.00024596,2]
[367048172,1750636246787,-460.0,0.00024596,2]
[367048173,1750636246796,-542.65386356,0.00024596,2]
[367048174,1750636246806,-2266.62,0.00024596,2]
[367048175,1750636246816,-460.0,0.00024596,2]
[367048176,1750636246827,-2994.08,0.00024596,2]
[367048177,1750636246836,-460.0,0.00024596,2]
[367048178,1750636246846,-395.22487269,0.00024596,2]
[367048180,1750636246865,-460.0,0.00024596,2]
[367048182,1750636246879,-460.0,0.00024596,2]
[367048184,1750636246889,-460.0,0.00024596,2]
[367048186,1750636246899,-460.0,0.00024596,2]
[367048188,1750636246909,-460.0,0.00024596,2]
[367048190,1750636246920,-460.0,0.00024596,2]
[367048192,1750636246930,-547.9,0.00024596,2]
[367048194,1750636246940,-460.0,0.00024596,2]
[367048196,1750636246950,-460.0,0.00024596,2]
[367048198,1750636246960,-713.73,0.00024596,2]
[367048201,1750636246970,-460.0,0.00024596,2]
[367048203,1750636246980,-460.0,0.00024596,2]
[367048205,1750636246990,-460.0,0.00024596,2]
[367048207,1750636247000,-433.35761123,0.00024596,2]
[367048209,1750636247009,-388.3591716,0.00024596,2]
[367048211,1750636247018,-460.0,0.00024596,2]
[367048213,1750636247027,-580.34,0.00024596,2]
[367048215,1750636247037,-759.0,0.00024596,2]
[367048217,1750636247047,-460.0,0.00024596,2]
[367048219,1750636247057,-460.0,0.00024596,2]
[367048221,1750636247069,-460.0,0.00024596,2]
[367048223,1750636247080,-460.0,0.00024596,2]
[367048225,1750636247090,-1142.46,0.00024596,2]
[367048227,1750636247100,-460.0,0.00024596,2]
[367048229,1750636247109,-460.0,0.00024596,2]
[367048231,1750636247119,-1368.17,0.00024596,2]
[367048233,1750636247129,-881.23217875,0.00024602,2]
[367048235,1750636247138,-1360.06,0.00024605,2]
[367048237,1750636247149,-1781.3,0.00024605,2]
[367048240,1750636247159,-460.0,0.00024605,2]
[367048242,1750636247169,-466.26,0.00024605,2]
[367048244,1750636247179,-460.0,0.00024605,2]
[367048245,1750636247188,-2294.47,0.00024605,2]
[367048248,1750636247198,-1183.35,0.00024605,2]
[367048249,1750636247208,-460.0,0.00024605,2]
[367048252,1750636247218,-460.0,0.00024605,2]
[367048253,1750636247228,-460.0,0.00024605,2]
[367048256,1750636247238,-464.0,0.00024605,2]
[367048258,1750636247248,-460.0,0.00024605,2]
[367048260,1750636247258,-1005.62,0.00024605,2]
[367048262,1750636247268,-493.28,0.00024605,2]
[367048264,1750636247278,-1320.19,0.00024605,2]
[367048266,1750636247288,-460.0,0.00024605,2]
[367048268,1750636247297,-4641.53,0.00024605,2]
[367048270,1750636247307,-460.0,0.00024605,2]
[367048272,1750636247318,-460.0,0.00024605,2]
[367048274,1750636247328,-460.0,0.00024605,2]
[367048276,1750636247337,-1420.67,0.00024605,2]
[367048278,1750636247347,-471.74,0.00024605,2]
[367048280,1750636247357,-460.0,0.00024605,2]
[367048282,1750636247367,-870.51,0.00024605,2]
[367048284,1750636247376,-500.0,0.0002461,2]
[367048286,1750636247386,-800.0,0.00024615,2]
[367048288,1750636247396,-1326.22469841,0.00024624,11]
[367048290,1750636247407,-400.0,0.00024658,7]
[367048292,1750636247417,-1000.0,0.00024658,2]
[367048294,1750636247426,-1000.0,0.00024658,2]
[367048296,1750636247436,-1000.0,0.00024658,2]
[367048298,1750636247446,-1000.0,0.00024658,2]
[367048301,1750636247456,-500.0,0.00024658,2]
[367048303,1750636247466,-1180.84,0.00024685,2]
[367048305,1750636247476,-460.0,0.00024685,2]
[367048307,1750636247486,-460.0,0.00024685,2]
[367048309,1750636247497,-460.0,0.00024685,2]
[367048311,1750636247508,-593.21,0.00024685,2]
[367048313,1750636247517,-4797.68,0.00024685,2]
[367048315,1750636247528,-7347.76,0.00024685,2]
[367048317,1750636247539,-2508.66,0.00024685,2]
[367048319,1750636247549,-1618.48,0.00024685,2]
[367048321,1750636247559,-516.76,0.00024685,2]
[367048323,1750636247570,-460.0,0.00024685,2]
[367048325,1750636247581,-460.0,0.00024685,2]
[367048327,1750636247591,-996.65,0.00024685,2]
[367048330,1750636247602,-5256.2,0.00024685,2]
[367048332,1750636247612,-6638.88,0.00024685,2]
[367048334,1750636247623,-9227.59,0.00024685,2]
[367048336,1750636247634,-2016.08,0.00024685,2]
[367048338,1750636247644,-460.0,0.00024685,2]
[367048340,1750636247654,-3711.46,0.00024685,2]
[367048342,1750636247664,-460.0,0.00024685,2]
[367048344,1750636247675,-151.0,0.00024685,7]
[367048346,1750636247685,-6447.27,0.00024685,2]
[367048349,1750636247696,-500.0,0.00024685,2]
[367048351,1750636247705,-7350.25,0.000247,7]
[367048353,1750636247716,-836.56272071,0.000247,7]
[367048355,1750636247726,-160.0,0.000247,7]
[367048357,1750636247736,-500.0,0.00024713,2]
[367048359,1750636247745,-460.0,0.00024726,2]
[367048361,1750636247755,-460.0,0.00024726,2]
[367048363,1750636247766,-822.18,0.00024726,2]
[367048365,1750636247776,-639.38,0.00024726,2]
[367048367,1750636247786,-460.0,0.00024726,2]
[367048369,1750636247796,-460.0,0.00024726,2]
[367048372,1750636247806,-3857.28,0.00024726,2]
[367048374,1750636247817,-1049.45,0.00024726,2]
[367048376,1750636247828,-495.98,0.00024726,2]
[367048378,1750636247838,-1911.41,0.00024726,2]
[367048380,1750636247848,-2831.33,0.00024726,2]
[367048382,1750636247858,-1610.7,0.00024726,2]
[367048384,1750636247868,-460.0,0.00024726,2]
[367048386,1750636247880,-10608.46,0.00024726,2]
[367048388,1750636247891,-460.0,0.00024726,2]
[367048390,1750636247902,-509.8,0.00024726,2]
[367048392,1750636247912,-960.88,0.00024726,2]
[367048394,1750636247923,-460.0,0.00024726,2]
[367048397,1750636247933,-460.0,0.00024726,2]
[367048399,1750636247943,-2786.99,0.00024726,2]
[367048401,1750636247954,-460.0,0.00024726,2]
[367048403,1750636247964,-579.62,0.00024726,2]
[367048405,1750636247974,-460.0,0.00024726,2]
[367048407,1750636247985,-460.0,0.00024726,2]
[367048409,1750636247995,-485.32,0.00024726,2]
[367048411,1750636248005,-460.0,0.00024726,2]
[367048413,1750636248015,-460.0,0.00024726,2]
[367048415,1750636248025,-460.0,0.00024726,2]
[367048418,1750636248035,-1629.68,0.00024726,2]
[367048420,1750636248045,-460.0,0.00024726,2]
[367048422,1750636248054,-522.83,0.00024726,2]
[367048424,1750636248064,-460.0,0.00024726,2]
[367048426,1750636248074,-460.0,0.00024726,2]
[367048428,1750636248084,-460.0,0.00024726,2]
[367048430,1750636248094,-460.0,0.00024726,2]
[367048432,1750636248105,-597.73,0.00024726,2]
[367048434,1750636248115,-945.01,0.00024726,2]
[367048436,1750636248124,-673.12,0.00024726,2]
[367048438,1750636248134,-4221.89,0.00024726,2]
[367048440,1750636248144,-460.0,0.00024726,2]
[367048442,1750636248154,-181.76914802,0.00024726,2]
[367048444,1750636248163,-460.0,0.00024726,2]
[367048446,1750636248173,-2757.09,0.00024726,2]
[367048449,1750636248183,-513.66699669,0.00024726,2]
[367048451,1750636248194,-460.0,0.00024726,2]
[367048453,1750636248204,-576.89,0.00024726,2]
[367048455,1750636248213,-460.0,0.00024726,2]
[367048457,1750636248223,-460.0,0.00024726,2]
[367048459,1750636248233,-2422.1,0.00024726,2]
[367048461,1750636248243,-635.5,0.00024726,2]
[367048463,1750636248252,-609.53,0.00024726,2]
[367048465,1750636248262,-460.0,0.00024726,2]
[367048467,1750636248272,-460.0,0.00024726,2]
[367048469,1750636248282,-460.0,0.00024726,2]
[367048471,1750636248292,-460.0,0.00024726,2]
[367048473,1750636248302,-713.62,0.00024726,2]
[367048475,1750636248312,-876.44,0.00024726,2]
[367048477,1750636248323,-1236.08,0.00024726,2]
[367048480,1750636248333,-762.42,0.00024726,2]
[367048482,1750636248342,-1241.59,0.00024726,2]
[367048484,1750636248353,-185.60636,0.00024726,7]
[367048486,1750636248363,-1518.15,0.00024726,2]
[367048488,1750636248373,-1326.22469841,0.00024728,11]
[367048490,1750636248383,-500.0,0.0002474,2]
[367048492,1750636248393,-151.0,0.00024766,6]
[367048494,1750636248403,-500.0,0.00024768,2]
[367048496,1750636248413,-462.0,0.00024788,2]
[367048498,1750636248423,-296.18509573,0.00024795,2]
[367048500,1750636248433,-45546.7832683,0.000248,2]
[367048502,1750636248442,-185.27611795,0.000248,4]
[367048504,1750636248452,-185.27611795,0.000248,4]
[367048506,1750636248462,-185.27611795,0.000248,4]
[367048509,1750636248472,-185.27611795,0.000248,4]
[367048511,1750636248482,-185.27611795,0.000248,4]
[367048513,1750636248491,-185.27611795,0.000248,4]
[367048515,1750636248501,-185.27611795,0.000248,4]
[367048517,1750636248511,-185.27611795,0.000248,4]
[367048519,1750636248520,-185.27611795,0.000248,4]
[367048521,1750636248530,-185.27611795,0.000248,4]
[367048523,1750636248540,-185.27611795,0.000248,4]
[367048525,1750636248550,-185.27611795,0.000248,4]
[367048527,1750636248560,-185.27611795,0.000248,4]
[367048529,1750636248570,-185.27611795,0.000248,4]
[367048531,1750636248580,-185.27611795,0.000248,4]
[367048533,1750636248590,-185.27611795,0.000248,4]
[367048535,1750636248600,-185.27611795,0.000248,4]
[367048537,1750636248610,-185.27611795,0.000248,4]
[367048539,1750636248620,-185.27611795,0.000248,4]
[367048542,1750636248630,-185.27,0.000248,4]
[367048544,1750636248640,-432.31094188,0.000248,4]
[367048546,1750636248649,-432.31094188,0.000248,4]
[367048548,1750636248659,-432.31094188,0.000248,4]
[367048550,1750636248669,-432.31094188,0.000248,4]
[367048552,1750636248679,-432.31094188,0.000248,4]
[367048554,1750636248689,-432.31094188,0.000248,4]
[367048556,1750636248699,-432.31094188,0.000248,4]
[367048558,1750636248709,-432.31094188,0.000248,4]
[367048560,1750636248719,-432.31094188,0.000248,4]
[367048562,1750636248729,-432.31094188,0.000248,4]
[367048564,1750636248738,-432.31094188,0.000248,4]
[367048566,1750636248748,-432.31094188,0.000248,4]
[367048568,1750636248758,-432.31094188,0.000248,4]
[367048570,1750636248769,-432.31094188,0.000248,4]
[367048572,1750636248779,-432.31094188,0.000248,4]
[367048574,1750636248788,-432.31094188,0.000248,4]
[367048576,1750636248798,-432.31094188,0.000248,4]
[367048578,1750636248807,-432.31094188,0.000248,4]
[367048580,1750636248817,-432.31094188,0.000248,4]
[367048583,1750636248827,-233.02,0.000248,4]
[367048584,1750636248836,-181.24540649,0.000248,4]
[367048587,1750636248846,-181.24540649,0.000248,4]
[367048589,1750636248856,-151.0,0.000248,7]
[367048591,1750636248867,-662.51,0.00024811,2]
[367048593,1750636248879,-460.0,0.00024811,2]
[367048595,1750636248889,-460.0,0.00024811,2]
[367048597,1750636248899,-460.0,0.00024811,2]
[367048599,1750636248909,-460.0,0.00024811,2]
[367048601,1750636248919,-460.0,0.00024811,2]
[367048603,1750636248928,-592.01,0.00024811,2]
[367048605,1750636248938,-460.0,0.00024811,2]
[367048607,1750636248948,-460.0,0.00024811,2]
[367048609,1750636248960,-460.0,0.00024811,2]
[367048611,1750636248970,-629.77,0.00024814,2]
[367048613,1750636248980,-368.15526215,0.00024814,2]
[367048615,1750636248991,-1046.85,0.00024814,2]
[367048617,1750636249001,-582.51,0.00024814,2]
[367048619,1750636249011,-460.0,0.00024814,2]
[367048621,1750636249021,-460.0,0.00024814,2]
[367048623,1750636249032,-2846.67395427,0.00024822,2]
[367048626,1750636249042,-296.86084997,0.00024823,2]
[367048628,1750636249052,-1000.0,0.00024823,2]
[367048630,1750636249062,-867.0,0.00024823,2]
[367048632,1750636249072,-151.0,0.00024823,2]
[367048634,1750636249082,-198.0,0.00024823,2]
[367048636,1750636249092,-151.0,0.00024823,2]
[367048638,1750636249103,-500.0,0.00024823,2]
[367048640,1750636249112,-500.0,0.00024823,2]
[367048642,1750636249122,-151.0,0.00024823,2]
[367048644,1750636249132,-198.0,0.00024823,2]
[367048646,1750636249141,-1326.22469841,0.00024831,12]
[367048648,1750636249151,-6082.9,0.00024832,2]
[367048650,1750636249161,-5537.66,0.00024832,2]
[367048652,1750636249171,-490.22,0.00024832,2]
[367048655,1750636249181,-8191.26,0.00024832,2]
[367048657,1750636249191,-4231.51,0.00024832,2]
[367048659,1750636249201,-585.43,0.00024832,2]
[367048661,1750636249210,-7961.46,0.00024832,2]
[367048663,1750636249219,-1201.39,0.00024832,2]
[367048665,1750636249229,-460.0,0.00024832,2]
[367048667,1750636249239,-460.0,0.00024832,2]
[367048669,1750636249249,-460.0,0.00024832,2]
[367048671,1750636249258,-460.0,0.00024832,2]
[367048673,1750636249268,-460.0,0.00024832,2]
[367048675,1750636249277,-2066.15,0.00024832,2]
[367048677,1750636249287,-1427.61,0.00024832,2]
[367048679,1750636249296,-374.91353451,0.00024832,2]
[367048681,1750636249306,-500.0,0.00024843,2]
[367048683,1750636249315,-670.65,0.00024843,2]
[367048685,1750636249326,-653.05,0.00024843,2]
[367048687,1750636249336,-460.0,0.00024843,2]
[367048690,1750636249346,-773.09,0.00024843,2]
[367048692,1750636249356,-3148.43,0.00024843,2]
[367048694,1750636249366,-1664.29,0.00024843,2]
[367048696,1750636249376,-460.0,0.00024843,2]
[367048698,1750636249386,-470.03,0.00024843,2]
[367048700,1750636249396,-413.26,0.00024849,3]
[367048702,1750636249406,-867.0,0.0002485,2]
[367048704,1750636249416,-177.89952691,0.0002485,2]
[367048706,1750636249426,-151.0,0.0002485,2]
[367048708,1750636249436,-500.0,0.0002485,2]
[367048710,1750636249446,-500.0,0.0002485,2]
[367048713,1750636249456,-198.99710973,0.0002485,2]
[367048715,1750636249466,-460.0,0.00024858,2]
[367048717,1750636249476,-460.0,0.00024858,2]
[367048719,1750636249486,-460.0,0.00024858,2]
[367048721,1750636249496,-460.0,0.00024858,2]
[367048723,1750636249506,-242.8314918,0.00024858,2]
[367048725,1750636249515,-460.0,0.00024858,2]
[367048727,1750636249525,-460.0,0.00024858,2]
[367048729,1750636249535,-460.0,0.00024858,2]
[367048731,1750636249545,-460.0,0.00024858,2]
[367048733,1750636249554,-460.0,0.00024858,2]
[367048735,1750636249564,-830.46,0.00024858,2]
[367048737,1750636249574,-854.56,0.00024858,2]
[367048739,1750636249584,-460.0,0.00024858,2]
[367048741,1750636249594,-514.38027467,0.00024858,2]
[367048744,1750636249604,-460.0,0.00024858,2]
[367048746,1750636249614,-460.0,0.00024858,2]
[367048748,1750636249624,-460.0,0.00024858,2]
[367048750,1750636249634,-460.0,0.00024858,2]
[367048752,1750636249644,-479.83177828,0.00024858,2]
[367048754,1750636249654,-460.0,0.00024858,2]
[367048756,1750636249664,-460.0,0.00024858,2]
[367048758,1750636249674,-460.0,0.00024858,2]
[367048760,1750636249684,-460.0,0.00024858,2]
[367048762,1750636249694,-490.25529439,0.00024858,2]
[367048764,1750636249704,-460.0,0.00024858,2]
[367048766,1750636249714,-460.0,0.00024858,2]
[367048768,1750636249725,-2846.67395427,0.00024869,2]
[367048771,1750636249736,-867.37,0.00024869,3]
[367048773,1750636249749,-607.16990538,0.0002487,2]
[367048794,1750636249935,-460.0,0.0002487,2]
[367048796,1750636249945,-460.0,0.0002487,2]
[367048798,1750636249956,-460.0,0.0002487,2]
[367048800,1750636249966,-2032.93,0.0002487,2]
[367048802,1750636249976,-519.66,0.0002487,2]
[367048804,1750636249985,-652.73,0.0002487,2]
[367048806,1750636249995,-460.0,0.0002487,2]
[367048808,1750636250004,-460.0,0.0002487,2]
[367048810,1750636250014,-572.63,0.0002487,2]
[367048812,1750636250023,-754.77,0.0002487,2]
[367048814,1750636250033,-460.0,0.0002487,2]
[367048816,1750636250043,-460.0,0.0002487,2]
[367048818,1750636250052,-460.0,0.0002487,2]
[367048820,1750636250061,-460.0,0.0002487,2]
[367048822,1750636250071,-254.22565788,0.0002487,2]
[367048824,1750636250081,-208.77080692,0.0002487,2]
[367048826,1750636250090,-460.0,0.0002487,2]
[367048828,1750636250100,-460.0,0.0002487,2]
[367048830,1750636250109,-586.01709695,0.0002487,2]
[367048832,1750636250119,-460.0,0.0002487,2]
[367048834,1750636250128,-460.0,0.0002487,2]
[367048836,1750636250138,-460.0,0.0002487,2]
[367048838,1750636250147,-460.0,0.0002487,2]
[367048840,1750636250157,-2266.62,0.0002487,2]
[367048842,1750636250166,-460.0,0.0002487,2]
[367048844,1750636250176,-2994.08,0.0002487,2]
[367048846,1750636250185,-460.0,0.0002487,2]
[367048848,1750636250194,-460.0,0.0002487,2]
[367048850,1750636250204,-460.0,0.0002487,2]
[367048852,1750636250215,-460.0,0.0002487,2]
[367048854,1750636250224,-460.0,0.0002487,2]
[367048856,1750636250233,-460.0,0.0002487,2]
[367048858,1750636250244,-460.0,0.0002487,2]
[367048860,1750636250253,-547.9,0.0002487,2]
[367048862,1750636250263,-460.0,0.0002487,2]
[367048864,1750636250272,-460.0,0.0002487,2]
[367048866,1750636250281,-713.73,0.0002487,2]
[367048868,1750636250291,-460.0,0.0002487,2]
[367048870,1750636250303,-460.0,0.0002487,2]
[367048872,1750636250313,-460.0,0.0002487,2]
[367048874,1750636250322,-460.0,0.0002487,2]
[367048876,1750636250332,-580.34,0.0002487,2]
[367048878,1750636250341,-759.0,0.0002487,2]
[367048880,1750636250350,-447.42432569,0.0002487,2]
[367048882,1750636250361,-460.0,0.0002487,2]
[367048884,1750636250371,-460.0,0.0002487,2]
[367048886,1750636250380,-151.0,0.0002487,7]
[367048888,1750636250391,-460.0,0.0002487,2]
[367048890,1750636250401,-1142.46,0.0002487,2]
[367048892,1750636250411,-460.0,0.0002487,2]
[367048894,1750636250421,-460.0,0.0002487,2]
[367048896,1750636250430,-1368.17,0.0002487,2]
[367048898,1750636250439,-500.0,0.00024873,2]
[367048900,1750636250449,-500.0,0.00024873,2]
[367048903,1750636250458,-500.0,0.00024873,2]
[367048905,1750636250467,-500.0,0.00024873,2]
[367048907,1750636250477,-500.0,0.00024873,2]
[367048908,1750636250486,-500.0,0.00024873,2]
[367048911,1750636250495,-432.31,0.00024873,4]
[367048912,1750636250505,-181.24,0.00024873,4]
[367048915,1750636250514,-867.0,0.00024878,2]
[367048917,1750636250524,-245.0,0.00024878,2]
[367048919,1750636250534,-500.0,0.00024878,2]
[367048921,1750636250543,-205.20470627,0.00024878,2]
[367048923,1750636250553,-1360.06,0.00024879,2]
[367048925,1750636250563,-1781.3,0.00024879,2]
[367048927,1750636250572,-460.0,0.00024879,2]
[367048929,1750636250581,-466.26,0.00024879,2]
[367048931,1750636250590,-460.0,0.00024879,2]
[367048933,1750636250599,-2294.47,0.00024879,2]
[367048935,1750636250608,-1183.35,0.00024879,2]
[367048937,1750636250619,-460.0,0.00024879,2]
[367048939,1750636250629,-460.0,0.00024879,2]
[367048941,1750636250638,-460.0,0.00024879,2]
[367048943,1750636250647,-464.0,0.00024879,2]
[367048945,1750636250657,-460.0,0.00024879,2]
[367048947,1750636250666,-1005.62,0.00024879,2]
[367048949,1750636250676,-493.28,0.00024879,2]
[367048951,1750636250686,-1320.19,0.00024879,2]
[367048953,1750636250696,-460.0,0.00024879,2]
[367048955,1750636250706,-4641.53,0.00024879,2]
[367048957,1750636250715,-460.0,0.00024879,2]
[367048959,1750636250726,-460.0,0.00024879,2]
[367048961,1750636250736,-460.0,0.00024879,2]
[367048963,1750636250746,-1420.67,0.00024879,2]
[367048965,1750636250755,-471.74,0.00024879,2]
[367048967,1750636250765,-460.0,0.00024879,2]
[367048969,1750636250774,-870.51,0.00024879,2]
[367048971,1750636250784,-358203.21500345,0.000249,2]
[367048998,1750636251149,-1084.58006635,0.000249,2]
[367049000,1750636251169,-1388.36667946,0.000249,2]
[367049170,1750636252807,-460.0,0.00023188,2]
[367049172,1750636252816,-460.0,0.00023462,2]
[367049174,1750636252826,-460.0,0.00023462,2]
[367049176,1750636252836,-460.0,0.00023736,2]
[367049178,1750636252845,-460.0,0.00023736,2]
[367049180,1750636252855,-460.0,0.00023747,2]
[367049182,1750636252864,-88.50966926,0.0002401,2]
[367049221,1750636253548,-2878.61,0.00023199,2]
[367049223,1750636253558,-2878.61,0.00023473,2]
[367049225,1750636253568,-500.0,0.00023735,2]
[367049227,1750636253578,-550.84373962,0.00023735,2]
[367049229,1750636253587,-2878.61,0.00023747,2]
[367049231,1750636253597,-371.49033074,0.0002401,2]
[367049233,1750636253607,-460.0,0.0002401,2]
[367049235,1750636253617,-463.05249911,0.00024021,2]
[367049237,1750636253626,-2878.61,0.00024021,2]
[367049239,1750636253636,-460.0,0.00024284,2]
[367049242,1750636253646,-460.0,0.00024284,2]
[367049244,1750636253655,-2878.61,0.00024295,2]
[367049246,1750636253665,-460.0,0.00024331,2]
[367049248,1750636253674,-229.3221117,0.00024331,2]
[367049250,1750636253684,-213.59462818,0.0002451,2]
[367049252,1750636253693,-425.01221603,0.0002451,2]
[367049254,1750636253703,-460.0,0.00024558,2]
[367049256,1750636253713,-460.0,0.00024558,2]
[367049258,1750636253723,-460.0,0.00024605,2]
[367049260,1750636253732,-1076.55,0.00024685,2]
[367049262,1750636253742,-185.60636,0.00024726,7]
[367049264,1750636253752,-460.0,0.00024832,2]
[367049266,1750636253762,-460.0,0.00024832,2]
[367049268,1750636253771,-460.0,0.00024879,2]
[367049270,1750636253781,-103474.39346074,0.000249,2]
[367049272,1750636253791,-151.0,0.000249,7]
[367049274,1750636253801,-867.0,0.00024905,2]
[367049276,1750636253810,-500.0,0.00024905,2]
[367049278,1750636253820,-867.0,0.00024933,2]
[367049280,1750636253830,-500.0,0.00024933,2]
[367049282,1750636253840,-1326.22469841,0.00024934,12]
[367049284,1750636253849,-500.0,0.00024945,2]
[367049286,1750636253859,-2846.67395427,0.0002495,2]
[367049288,1750636253869,-1180.84,0.00024959,2]
[367049290,1750636253881,-460.0,0.00024959,2]
[367049292,1750636253891,-460.0,0.00024959,2]
[367049294,1750636253901,-460.0,0.00024959,2]
[367049296,1750636253911,-7347.76,0.00024959,2]
[367049298,1750636253921,-2508.66,0.00024959,2]
[367049300,1750636253931,-1618.48,0.00024959,2]
[367049302,1750636253940,-516.76,0.00024959,2]
[367049304,1750636253952,-460.0,0.00024959,2]
[367049306,1750636253962,-460.0,0.00024959,2]
[367049308,1750636253971,-996.65,0.00024959,2]
[367049310,1750636253981,-5256.2,0.00024959,2]
[367049312,1750636253990,-6638.88,0.00024959,2]
[367049314,1750636254000,-9227.59,0.00024959,2]
[367049316,1750636254010,-2016.08,0.00024959,2]
[367049319,1750636254020,-460.0,0.00024959,2]
[367049321,1750636254029,-3711.46,0.00024959,2]
[367049323,1750636254041,-460.0,0.00024959,2]
[367049325,1750636254051,-6447.27,0.00024959,2]
[367049327,1750636254061,-1076.55,0.00024959,2]
[367049329,1750636254071,-867.0,0.0002496,2]
[367049331,1750636254081,-500.0,0.0002496,2]
[367049333,1750636254091,-500.0,0.0002496,2]
[367049335,1750636254100,-500.0,0.00024973,2]
[367049337,1750636254111,-500.0,0.00024973,2]
[367049339,1750636254120,-500.0,0.00024973,2]